bitfinex/quotes_ETHUSD_20250519
["timestamp","ask_amount","ask_price","bid_price","bid_amount"]
[1747634178213,4.21471121,2372.7,2372.4,0.8768]
[1747634178413,4.21491597,2372.6,2372.4,0.8768]
[1747634178713,4.21491597,2372.6,2372.3,0.33094407]
[1747634178714,1.69813127,2372.9,2372.3,0.33094407]
[1747634178910,4.21486821,2372.6,2372.4,0.23633527]
[1747634179319,4.21496311,2372.5,2372.4,0.23633527]
[1747634179483,4.21496311,2372.5,2372.3,0.33094407]
[1747634179896,4.21496311,2372.5,2372.3,0.2655706]
[1747634180294,12.76788401,2372.6,2372.4,0.23633367]
[1747634180682,4.21496311,2372.5,2372.4,0.23633367]
[1747634181108,5.2396056,2372.8,2372.4,0.23633367]
[1747634181319,8.553,2372.7,2372.4,0.50190427]
[1747634181516,4.21478959,2372.6,2372.4,0.50190427]
[1747634181906,4.21478959,2372.6,2372.5,0.23632337]
[1747634184421,1.02511313,2372.8,2372.5,0.23632337]
[1747634184588,12.76761744,2372.7,2372.5,0.23632337]
[1747634184793,4.21478546,2372.6,2372.5,0.23632337]
[1747634185623,12.7677095,2372.7,2372.5,0.23632337]
[1747634185991,12.7677095,2372.7,2372.2,5.12798831]
[1747634185992,4.21414322,2373.0,2372.6,0.23632337]
[1747634186189,0.856,2373.5,2372.7,9.4892]
[1747634186394,5.06924262,2373.5,2372.8,1.39402608]
[1747634186639,4.21355113,2373.3,2372.9,0.23632337]
[1747634186817,0.856,2373.5,2372.9,0.23632337]
[1747634187021,4.21345625,2373.4,2372.9,4.45056617]
[1747634187342,12.76621911,2373.5,2373.1,0.8873]
[1747634187499,4.21336479,2373.4,2373.1,0.8873]
[1747634187701,5.52117145,2373.6,2373.2,0.23632337]
[1747634188026,4.2133065,2373.5,2373.2,0.23632337]
[1747634188443,4.2133065,2373.5,2373.3,0.23632337]
[1747634188724,4.21329672,2373.5,2373.3,0.23632337]
[1747634188916,4.21329672,2373.5,2373.1,0.8873]
[1747634189737,12.76509775,2373.6,2373.1,5.10119597]
[1747634189899,12.76509775,2373.6,2373.2,0.23626061]
[1747634190224,12.76510731,2373.6,2373.2,0.23626061]
[1747634190449,12.76410731,2373.6,2373.2,0.23626061]
[1747634190939,12.76410731,2373.6,2373.3,0.2653683]
[1747634191137,5.91080332,2373.6,2373.3,0.50162891]
[1747634191844,5.15406479,2373.4,2373.3,0.50162891]
[1747634192149,8.90530063,2373.4,2373.3,0.2653683]
[1747634192357,5.15477501,2373.0,2372.9,0.33094407]
[1747634192535,6.09164557,2373.0,2372.9,0.33094407]
[1747634192701,14.64164557,2373.0,2372.9,0.33094407]
[1747634194556,4.21511585,2372.5,2372.3,0.26534939]
[1747634194844,10.42757056,2373.0,2372.4,0.2361624]
[1747634195246,14.64165368,2373.0,2372.4,0.2361624]
[1747634195416,4.21487889,2372.6,2372.4,0.2361624]
[1747634195750,4.21487889,2372.6,2372.5,0.2361624]
[1747634196448,4.21487889,2372.6,2372.2,0.8839]
[1747634196851,4.21509885,2372.5,2372.2,0.8839]
[1747634197212,4.21484668,2372.6,2372.2,0.8839]
[1747634197447,4.21484668,2372.6,2372.3,0.23612284]
[1747634198457,4.21484668,2372.6,2372.4,0.23612284]
[1747634198822,4.21496311,2372.5,2372.4,0.23612284]
[1747634200853,4.21489986,2372.6,2372.4,0.23612284]
[1747634201067,4.21502556,2372.5,2372.2,0.8839]
[1747634202265,4.21502556,2372.5,2372.3,0.23609439]
[1747634202480,4.21514078,2372.4,2372.3,0.23609439]
[1747634202787,4.2144302,2372.8,2372.3,0.23609439]
[1747634203076,4.21472516,2372.7,2372.3,0.23609439]
[1747634203278,4.21472516,2372.7,2372.4,0.23609439]
[1747634203774,12.76372516,2372.7,2372.4,0.23609439]
[1747634203983,12.76372516,2372.7,2372.2,5.09938356]
[1747634204552,4.21472516,2372.7,2372.2,5.09938356]
[1747634204746,12.76372516,2372.7,2372.2,5.09938356]
[1747634204947,12.76372516,2372.7,2372.3,0.23605931]
[1747634205147,4.2144302,2372.8,2372.3,0.23605931]
[1747634205148,6.09168628,2373.0,2372.3,1.03482854]
[1747634205380,4.21435121,2372.9,2372.4,4.21512691]
[1747634205536,12.76335121,2372.9,2372.4,4.21512691]
[1747634205738,4.21435121,2372.9,2372.5,0.23605931]
[1747634206050,8.549,2373.0,2372.6,0.911]
[1747634206247,8.549,2373.0,2372.6,5.12578495]
[1747634206582,4.21398878,2373.1,2372.6,5.12578495]
[1747634206747,14.70033584,2373.4,2372.7,4.45062836]
[1747634206748,8.548,2373.2,2372.7,4.45062836]
[1747634207066,9.4338,2373.7,2373.1,0.8581]
[1747634207277,4.21346158,2373.4,2373.1,0.8581]
[1747634207434,4.21328339,2373.5,2373.1,0.8581]
[1747634208463,4.2130963,2373.6,2373.1,0.8581]
[1747634208677,4.2130963,2373.6,2373.2,0.23588061]
[1747634208861,8.548,2373.7,2373.2,0.23588061]
[1747634209063,4.21322086,2373.5,2373.2,0.23588061]
[1747634209261,4.2131046,2373.6,2373.2,0.23588061]
[1747634209587,4.21261863,2373.9,2373.4,4.21334806]
[1747634209902,0.9118,2374.3,2373.5,4.21313326]
[1747634210064,4.2123315,2374.0,2373.4,13.65018111]
[1747634210271,4.21281967,2373.8,2373.4,11.24685412]
[1747634210507,4.21306292,2373.6,2373.4,0.8849]
[1747634210670,17.42083089,2374.3,2373.4,0.8849]
[1747634210873,4.21260681,2373.9,2373.4,0.8849]
[1747634211403,8.546,2374.1,2373.4,0.8849]
[1747634211577,0.9118,2374.3,2373.5,4.44877621]
[1747634211771,10.65172214,2374.5,2373.7,0.9307]
[1747634211971,4.21205945,2374.2,2373.8,8.552]
[1747634212382,4.21186014,2374.3,2373.9,0.23558894]
[1747634212968,4.2116326,2374.4,2373.9,4.44798309]
[1747634213290,4.21146043,2374.5,2374.0,4.21228652]
[1747634213475,4.211449,2374.5,2374.1,0.9026]
[1747634213678,4.21147272,2374.5,2374.1,0.9026]
[1747634214155,23.869663,2374.2,2374.1,0.9026]
[1747634215139,28.08173322,2374.2,2373.9,8.544]
[1747634216041,23.869663,2374.2,2373.9,8.544]
[1747634216242,23.869663,2374.2,2373.9,9.48744]
[1747634216683,23.869663,2374.2,2373.9,13.69979008]
[1747634216983,23.869663,2374.2,2374.0,5.15116847]
[1747634217181,23.869663,2374.2,2374.1,4.21212248]
[1747634217348,23.869663,2374.2,2374.1,13.15102248]
[1747634217557,23.869663,2374.2,2374.1,15.8360956]
[1747634217761,23.869663,2374.2,2374.1,16.07085754]
[1747634218094,23.869663,2374.2,2374.1,16.62085754]
[1747634218263,23.869663,2374.2,2374.1,25.16285754]
[1747634218670,23.869663,2374.2,2374.1,25.4710157]
[1747634219977,23.869663,2374.2,2374.1,25.73445687]
[1747634220757,23.869663,2374.2,2374.1,17.19245687]
[1747634220959,23.869663,2374.2,2374.1,34.27445687]
[1747634221994,23.869663,2374.2,2374.1,34.27045687]
[1747634223720,22.930463,2374.2,2374.1,34.27045687]
[1747634224771,22.930463,2374.2,2374.1,49.25823687]
[1747634225006,22.930463,2374.2,2374.1,41.38807587]
[1747634225185,22.930463,2374.2,2374.1,47.42807587]
[1747634225694,22.930463,2374.2,2374.1,40.30845687]
[1747634226063,22.930463,2374.2,2374.1,42.41900287]
[1747634226285,3.46529742,2374.2,2374.1,40.52516075]
[1747634226679,4.20907977,2375.9,2375.3,4.20990743]
[1747634226862,13.61588976,2376.0,2375.3,4.20990743]
[1747634226863,4.20913635,2375.8,2375.4,8.539]
[1747634228001,4.2090237,2375.9,2375.4,12.74881471]
[1747634228163,4.20919611,2375.8,2375.4,8.539]
[1747634228497,4.20893955,2375.9,2375.4,12.74872688]
[1747634228863,0.871,2376.0,2375.4,8.539]
[1747634229069,5.13793484,2376.2,2375.6,4.20931874]
[1747634229278,0.93461984,2376.1,2375.7,4.20916508]
[1747634230110,0.93461984,2376.1,2375.8,4.20904373]
[1747634230412,5.14334894,2376.1,2375.6,5.13477104]
[1747634230615,8.534,2376.4,2375.6,5.13477104]
[1747634230616,8.534,2376.4,2375.6,0.9254]
[1747634230907,4.20858785,2376.1,2375.6,5.13476802]
[1747634231871,4.20839996,2376.2,2375.3,0.8773]
[1747634232109,4.2087542,2376.0,2375.1,0.8773]
[1747634232295,4.20959752,2375.6,2375.2,8.537]
[1747634232700,4.20940725,2375.7,2375.2,12.74714734]
[1747634233097,4.20887978,2376.0,2375.3,0.55]
[1747634233282,0.8679,2376.1,2375.4,4.20981198]
[1747634233283,4.20903772,2375.9,2375.4,4.20981198]
[1747634233711,0.8679,2376.1,2375.1,0.8773]
[1747634233891,4.20938899,2375.7,2375.4,8.537]
[1747634234085,4.20938899,2375.7,2375.1,5.08748239]
[1747634234086,0.4209389,2375.6,2375.1,0.8773]
[1747634234291,5.07744723,2375.6,2375.1,0.8773]
[1747634234487,4.20937422,2375.7,2375.2,12.7461658]
[1747634234797,5.08795475,2375.8,2375.3,4.20994628]
[1747634235276,4.20878218,2376.0,2375.5,4.20955649]
[1747634235477,4.20878218,2376.0,2375.6,0.8818]
[1747634235721,0.51117822,2375.9,2375.6,0.8818]
[1747634236009,0.51117822,2375.9,2375.6,5.09108783]
[1747634236215,0.8858,2376.3,2375.7,8.536]
[1747634236394,0.8858,2376.3,2375.9,4.20892499]
[1747634236594,4.20809307,2376.4,2375.9,4.20892499]
[1747634236801,4.20823169,2376.3,2375.8,4.2090257]
[1747634236988,0.84161017,2376.3,2375.7,12.74517997]
[1747634237316,0.8845,2376.6,2376.3,4.20819966]
[1747634237528,0.8845,2376.6,2376.3,8.536]
[1747634237685,5.09219444,2376.6,2376.3,8.536]
[1747634238199,5.09219727,2376.6,2376.3,8.536]
[1747634238512,4.20770872,2376.6,2376.3,8.536]
[1747634238713,4.20742214,2376.8,2376.3,12.7441946]
[1747634238930,1.78597652,2376.8,2376.4,4.20803654]
[1747634239134,0.9153,2376.9,2376.5,4.20786487]
[1747634239432,4.20707069,2377.0,2376.4,0.8694]
[1747634239604,4.20707069,2377.0,2376.5,4.2078572]
[1747634239813,4.20707069,2377.0,2376.4,13.60631285]
[1747634240132,4.20674813,2377.2,2376.5,4.2078443]
[1747634240335,4.20674813,2377.2,2376.6,4.20754392]
[1747634240545,0.8836,2377.4,2376.9,0.8854]
[1747634240708,4.20655625,2377.3,2377.0,8.534]
[1747634240902,4.20645269,2377.3,2377.0,8.534]
[1747634242308,4.20645269,2377.3,2376.6,19.1072]
[1747634242309,0.92962148,2377.3,2376.6,19.1072]
[1747634242505,4.20716058,2376.9,2376.8,8.534]
[1747634242737,5.05526058,2376.9,2376.8,8.534]
[1747634244167,4.2068716,2377.1,2376.8,8.534]
[1747634244306,4.20724939,2376.9,2376.7,8.533]
[1747634244736,4.20685174,2377.1,2376.7,8.533]
[1747634244737,4.20689123,2377.1,2376.7,8.533]
[1747634245039,4.20656379,2377.3,2376.8,5.05802571]
[1747634245237,5.09285392,2377.4,2376.9,4.20713398]
[1747634245437,4.20635392,2377.4,2376.9,4.20713398]
[1747634245734,4.20645347,2377.3,2376.8,5.05796552]
[1747634246042,4.20645347,2377.3,2376.9,8.525]
[1747634246433,4.20645347,2377.3,2376.8,0.8507]
[1747634246676,0.42064535,2377.3,2376.8,0.8507]
[1747634246972,0.8683,2377.6,2376.9,8.524]
[1747634246973,4.20674373,2377.2,2376.9,8.524]
[1747634247133,4.20651602,2377.3,2376.9,8.524]
[1747634247463,4.20666653,2377.2,2376.9,8.524]
[1747634248031,4.20691789,2377.1,2377.0,8.524]
[1747634248436,4.2067206,2377.2,2377.0,8.524]
[1747634249064,0.8683,2377.6,2377.0,8.524]
[1747634249367,4.20680661,2377.1,2377.0,8.524]
[1747634249864,4.20691347,2377.1,2377.0,8.524]
[1747634250528,2.22800221,2377.6,2377.0,8.524]
[1747634250732,4.20671944,2377.2,2377.0,8.524]
[1747634251966,4.2065896,2377.3,2377.0,8.524]
[1747634252265,4.20638829,2377.4,2377.0,8.524]
[1747634252465,4.20662964,2377.2,2377.1,8.523]
[1747634252768,1.06403648,2377.4,2376.8,0.902]
[1747634252966,1.06403648,2377.4,2376.9,8.523]
[1747634252967,4.20698359,2377.0,2376.9,8.523]
[1747634253951,4.20689182,2377.1,2376.9,8.523]
[1747634254265,0.8457,2377.3,2376.9,8.523]
[1747634254571,4.20689117,2377.1,2376.9,8.523]
[1747634255130,5.05225163,2377.3,2376.9,8.523]
[1747634255336,4.20634699,2377.4,2376.9,8.523]
[1747634255835,4.20645387,2377.3,2376.9,8.523]
[1747634256036,1.06443099,2377.4,2376.9,8.523]
[1747634256336,4.20662964,2377.2,2376.7,8.0]
[1747634256539,4.20662964,2377.2,2376.8,8.523]
[1747634256986,4.20662964,2377.2,2376.8,12.73033349]
[1747634257296,5.27078545,2377.4,2376.9,4.2070315]
[1747634257590,4.20650017,2377.3,2376.8,12.73023089]
[1747634257731,4.20637538,2377.4,2376.9,4.20715074]
[1747634259080,4.20648088,2377.3,2376.8,12.73024341]
[1747634259470,4.20670644,2377.2,2376.8,8.523]
[1747634259770,4.20654896,2377.3,2376.8,12.73031139]
[1747634260372,4.20654896,2377.3,2376.9,0.26341602]
[1747634260670,4.20632827,2377.4,2376.9,4.47045376]
[1747634260974,4.20628091,2377.4,2377.0,13.60305721]
[1747634261148,0.8721,2377.5,2377.0,13.60305721]
[1747634261368,5.07821878,2377.5,2377.0,13.60294865]
[1747634261555,5.07821878,2377.5,2377.0,9.3961]
[1747634261556,4.20628457,2377.4,2377.0,9.3961]
[1747634261872,4.20628457,2377.4,2377.0,0.8741]
[1747634262047,4.20662964,2377.2,2376.8,8.855]
[1747634262252,4.20690354,2377.1,2376.9,0.23434232]
[1747634262448,4.20661327,2377.3,2376.9,0.23434232]
[1747634262652,0.92843154,2377.4,2376.9,0.23434232]
[1747634262880,5.078286,2377.5,2377.0,5.12616694]
[1747634263043,5.078286,2377.5,2377.1,0.23434232]
[1747634263237,4.206186,2377.5,2377.1,0.23434232]
[1747634263873,0.9383,2377.4,2377.1,0.23434232]
[1747634264083,5.14467193,2377.4,2377.1,0.23434232]
[1747634264548,5.14467193,2377.4,2377.0,0.23434232]
[1747634265473,5.14467193,2377.4,2377.1,0.26428027]
[1747634266368,5.14467193,2377.4,2377.2,0.23434232]
[1747634266570,0.9383,2377.4,2377.2,0.49862259]
[1747634266876,4.20618196,2377.5,2377.2,0.49862259]
[1747634267264,4.20618196,2377.5,2377.3,0.23434232]
[1747634267781,4.20627576,2377.4,2377.2,0.26428027]
[1747634267943,4.20617344,2377.5,2377.2,0.26428027]
[1747634268544,4.20627576,2377.4,2377.3,0.26428027]
[1747634269057,4.20627576,2377.4,2377.3,0.49991758]
[1747634271086,4.20616477,2377.5,2377.3,0.49991758]
[1747634271285,0.8465,2377.6,2377.3,0.49991758]
[1747634271587,5.05253883,2377.6,2377.4,0.23563731]
[1747634272153,4.20609884,2377.5,2377.4,0.23563731]
[1747634272784,4.20595496,2377.6,2377.4,0.23563731]
[1747634272993,4.20595496,2377.6,2377.5,0.13139022]
[1747634273360,0.9074,2377.8,2377.5,0.13139022]
[1747634273562,10.07,2377.9,2377.5,4.33739734]
[1747634273776,0.9304,2378.2,2377.6,0.13139022]
[1747634273961,0.9304,2378.2,2377.6,0.36702753]
[1747634274168,0.9304,2378.2,2377.7,5.12498048]
[1747634274494,5.13536416,2378.2,2377.8,8.88902753]
[1747634274660,4.20507526,2378.1,2377.9,0.13139022]
[1747634275081,5.13535346,2378.2,2378.0,0.13139022]
[1747634275261,4.20495346,2378.2,2378.0,0.13139022]
[1747634275490,4.20495346,2378.2,2378.1,0.36702753]
[1747634275684,0.8794,2378.4,2378.1,0.36702753]
[1747634275891,4.20469223,2378.3,2378.1,0.36702753]
[1747634276093,4.20469223,2378.3,2378.1,0.23563731]
[1747634276303,4.20469223,2378.3,2377.8,12.72748534]
[1747634276603,5.08400291,2378.4,2377.9,0.13134601]
[1747634276802,4.20510843,2378.1,2377.9,0.13134601]
[1747634276955,4.20510843,2378.1,2378.0,0.13134601]
[1747634277159,4.20510843,2378.1,2378.0,0.3662607]
[1747634278202,4.20493651,2378.2,2378.0,8.8792607]
[1747634278407,4.20476607,2378.3,2378.0,8.513]
[1747634279289,4.20489702,2378.2,2378.0,8.513]
[1747634279496,4.20503763,2378.1,2378.0,8.513]
[1747634280507,4.20554898,2377.9,2377.7,0.9194]
[1747634280673,5.06469213,2378.2,2377.6,0.33094407]
[1747634280674,4.20574504,2377.7,2377.6,0.33094407]
[1747634280874,4.20574504,2377.7,2377.4,8.94836508]
[1747634280875,4.20604604,2377.6,2377.4,0.33094407]
[1747634281069,4.20582377,2377.7,2377.5,0.1313738]
[1747634281384,4.20582377,2377.7,2377.6,0.23477444]
[1747634281823,4.20554039,2377.9,2377.6,0.36614824]
[1747634281975,4.20509906,2378.1,2377.6,0.36614824]
[1747634282179,4.20548754,2377.9,2377.7,0.1313738]
[1747634282671,4.20595953,2377.6,2377.4,0.33094407]
[1747634282877,4.20595953,2377.6,2377.5,8.513]
[1747634283091,4.20595953,2377.6,2377.5,8.87917121]
[1747634283719,4.20595953,2377.6,2377.5,0.36617121]
[1747634284130,8.81559537,2377.6,2377.5,0.36617121]
[1747634284292,4.20609884,2377.5,2377.4,0.33094407]
[1747634284627,4.20609884,2377.5,2377.0,8.513]
[1747634284930,5.06438089,2377.6,2377.1,4.44173057]
[1747634285102,5.06436505,2377.6,2377.1,1.11583478]
[1747634285419,4.20583328,2377.7,2377.2,0.13138962]
[1747634285580,4.20597166,2377.6,2377.2,0.13138962]
[1747634285780,4.20597166,2377.6,2377.3,0.3663244]
[1747634286015,4.206189,2377.5,2377.3,8.8793244]
[1747634286229,4.20627576,2377.4,2377.3,8.8793244]
[1747634286391,4.20627576,2377.4,2377.3,0.3663244]
[1747634286906,4.20609656,2377.6,2377.3,0.13138962]
[1747634287207,4.20616458,2377.5,2377.3,0.13138962]
[1747634287513,4.20577894,2377.7,2377.3,0.13138962]
[1747634287514,4.20582888,2377.7,2377.3,0.13138962]
[1747634287679,4.20595609,2377.6,2377.4,0.13138962]
[1747634288415,9.3986,2377.8,2377.1,8.513]
[1747634288592,4.20605432,2377.6,2377.1,16.513]
[1747634289291,4.20605432,2377.6,2377.2,0.13138386]
[1747634289476,4.20611238,2377.5,2377.2,0.13138386]
[1747634289679,4.20611238,2377.5,2377.3,0.13138386]
[1747634290018,4.20611238,2377.5,2377.4,0.23506508]
[1747634290231,4.20611238,2377.5,2377.4,0.36644894]
[1747634293206,4.20611238,2377.5,2377.4,0.13138386]
[1747634293406,4.20611238,2377.5,2377.1,8.513]
[1747634293407,4.20645269,2377.3,2377.2,0.13138386]
[1747634293617,4.20599089,2377.6,2377.2,0.13138386]
[1747634293821,4.20599089,2377.6,2377.3,0.13138511]
[1747634293822,4.20592834,2377.6,2377.3,0.13138511]
[1747634294032,4.20611418,2377.5,2377.3,0.13138511]
[1747634294237,4.20611418,2377.5,2377.4,0.13138511]
[1747634294706,4.20611418,2377.5,2377.4,0.23523061]
[1747634295349,4.20611418,2377.5,2377.4,0.13138511]
[1747634295935,4.20638099,2377.4,2377.2,0.13138511]
[1747634296121,4.20535684,2378.0,2377.3,5.3971651]
[1747634296446,4.2058388,2377.7,2377.4,0.13138511]
[1747634296650,4.20558843,2377.8,2377.4,0.13138511]
[1747634296651,4.20565564,2377.8,2377.4,0.13138511]
[1747634296856,4.20582772,2377.7,2377.5,0.13138511]
[1747634297023,4.20582772,2377.7,2377.5,0.39570841]
[1747634297418,4.20582772,2377.7,2377.6,0.13138511]
[1747634297613,4.20582772,2377.7,2377.6,0.36666378]
[1747634297833,4.20565067,2377.8,2377.6,0.36666378]
[1747634298051,4.20565067,2377.8,2377.7,0.13138511]
[1747634298426,4.20531262,2378.0,2377.7,0.13138511]
[1747634298634,4.20523953,2378.0,2377.7,0.13138511]
[1747634299047,4.20523953,2378.0,2377.8,0.13138511]
[1747634299246,4.20529336,2378.0,2377.8,0.13138511]
[1747634299416,14.27511056,2378.1,2377.8,0.13138511]
[1747634299620,4.20525004,2378.0,2377.8,0.13138511]
[1747634299858,10.07,2378.5,2377.9,0.13138511]
[1747634300028,4.20494059,2378.2,2377.9,0.13138511]
[1747634300352,4.20494059,2378.2,2378.0,0.13138511]
[1747634300856,8.506,2378.4,2378.0,0.13138511]
[1747634301057,4.20513265,2378.1,2377.7,0.951]
[1747634301554,4.20513265,2378.1,2377.8,0.36666082]
[1747634301931,4.20539131,2377.9,2377.8,0.63116588]
[1747634302145,8.506,2378.4,2377.8,0.63116588]
[1747634302436,8.506,2378.4,2377.9,0.13135452]
[1747634302792,4.20516492,2378.1,2377.9,0.13135452]
[1747634303056,4.20516492,2378.1,2378.0,0.13135452]
[1747634303438,4.20516492,2378.1,2377.9,0.13135452]
[1747634303944,4.20516492,2378.1,2378.0,0.13135452]
[1747634304659,4.20516492,2378.1,2377.8,0.13135452]
[1747634305256,4.20516492,2378.1,2377.9,0.13135452]
[1747634305459,4.20516492,2378.1,2377.9,0.36666483]
[1747634305837,4.20516492,2378.1,2378.0,0.13135452]
[1747634306238,4.20497147,2378.2,2378.0,0.13135452]
[1747634306573,4.20497147,2378.2,2377.8,0.13135452]
[1747634306942,4.20497147,2378.2,2377.9,0.13135452]
[1747634307262,4.20519452,2378.1,2378.0,0.13135452]
[1747634307826,4.20532621,2378.0,2377.8,0.13135452]
[1747634308034,6.15002206,2377.9,2377.8,0.13135452]
[1747634308369,4.20574504,2377.7,2377.6,0.13135452]
[1747634308526,7.07747579,2377.7,2377.6,0.13135452]
[1747634308727,4.20592193,2377.6,2377.5,0.33094407]
[1747634309330,4.20609884,2377.5,2377.4,0.13964475]
[1747634309530,4.20609884,2377.5,2377.4,0.37495892]
[1747634310967,4.20609884,2377.5,2377.4,0.13964475]
[1747634313743,4.20609884,2377.5,2377.1,1.37574263]
[1747634314142,4.20609884,2377.5,2377.2,0.23527532]
[1747634314343,12.7070177,2377.6,2377.2,0.23527532]
[1747634314569,4.20609884,2377.5,2377.2,0.23527532]
[1747634315060,4.20635183,2377.4,2377.3,0.23527532]
[1747634315273,4.20584729,2377.7,2377.3,0.23527532]
[1747634315503,4.20596485,2377.6,2377.3,0.23527532]
[1747634315986,4.20612738,2377.5,2377.3,0.23527532]
[1747634316177,4.20612738,2377.5,2377.4,0.23527532]
[1747634317189,4.20646156,2377.3,2377.1,9.87974263]
[1747634317377,4.20632958,2377.4,2377.2,0.26444533]
[1747634318556,4.20632958,2377.4,2377.3,0.23534548]
[1747634331669,0.9381,2377.9,2377.3,0.23534548]
[1747634332003,4.20565073,2377.8,2377.4,0.9141]
[1747634332203,4.20565073,2377.8,2377.5,0.23534548]
[1747634332881,4.20565073,2377.8,2377.6,0.23534548]
[1747634333179,4.20574504,2377.7,2377.6,0.23534548]
[1747634334305,4.20539573,2377.9,2377.6,0.49940272]
[1747634334306,4.20539131,2377.9,2377.6,0.49940272]
[1747634334505,4.20564052,2377.8,2377.6,0.49940272]
[1747634334802,4.20564052,2377.8,2377.7,0.23534548]
[1747634335499,4.20548996,2377.9,2377.7,0.23534548]
[1747634335868,4.20548996,2377.9,2377.6,0.26405724]
[1747634336069,4.20548996,2377.9,2377.4,5.12035648]
[1747634336297,13.59859328,2378.1,2377.5,4.20605236]
[1747634336298,4.20529345,2378.0,2377.5,4.20605236]
[1747634336481,4.20529345,2378.0,2377.6,8.491]
[1747634336676,4.20503828,2378.1,2377.7,0.9323]
[1747634336896,4.20521842,2378.0,2377.7,0.9323]
[1747634337203,4.20521842,2378.0,2377.8,0.23514854]
[1747634337406,4.20521842,2378.0,2377.9,0.23514854]
[1747634337904,4.20521842,2378.0,2377.8,0.23514854]
[1747634338086,0.898,2378.3,2377.8,0.23514854]
[1747634338087,4.20539131,2377.9,2377.8,0.23514854]
[1747634338287,5.04644097,2377.9,2377.8,0.23520576]
[1747634338488,7.07804019,2377.9,2377.8,0.49946342]
[1747634338892,7.07804019,2377.9,2377.8,0.26425766]
[1747634339605,4.20585796,2377.7,2377.3,9.4492]
[1747634339993,4.20585796,2377.7,2377.4,0.23526055]
[1747634340382,4.20585796,2377.7,2377.3,9.4492]
[1747634340583,4.20592193,2377.6,2377.5,0.23524949]
[1747634340901,4.20592193,2377.6,2377.5,0.4994903]
[1747634342010,4.20592193,2377.6,2377.5,0.26424081]
[1747634342215,5.18713603,2377.7,2377.5,0.49940995]
[1747634342409,4.20592193,2377.6,2377.5,0.49940995]
[1747634342582,4.20592193,2377.6,2377.5,0.26424081]
[1747634342774,4.20592193,2377.6,2377.5,0.49940645]
[1747634342974,4.20592193,2377.6,2377.5,0.49940637]
[1747634343810,4.20583061,2377.7,2377.5,0.49940637]
[1747634344308,4.20592193,2377.6,2377.5,0.26424081]
[1747634344512,4.20582241,2377.7,2377.2,13.02854587]
[1747634344699,4.20557066,2377.8,2377.4,0.964]
[1747634344901,4.20581362,2377.7,2377.4,0.964]
[1747634345096,4.20593708,2377.6,2377.5,0.2352221]
[1747634345302,4.20580446,2377.7,2377.5,8.7262221]
[1747634345613,4.20580446,2377.7,2377.6,0.23522079]
[1747634346010,4.20561117,2377.8,2377.6,0.49946522]
[1747634346217,4.20547415,2377.9,2377.7,0.23517757]
[1747634346520,4.20547415,2377.9,2377.6,0.26427341]
[1747634347016,5.17010478,2378.2,2377.6,0.26427341]
[1747634347325,4.20550039,2377.9,2377.6,0.26427341]
[1747634347827,4.20556817,2377.8,2377.7,0.26427341]
[1747634348027,4.20556817,2377.8,2377.7,0.49940024]
[1747634348182,4.20548001,2377.9,2377.7,0.63077208]
[1747634348517,4.20556817,2377.8,2377.7,0.49940024]
[1747634348818,4.20556817,2377.8,2377.7,0.39564541]
[1747634349012,4.20556817,2377.8,2377.7,0.63076405]
[1747634349379,4.20556817,2377.8,2377.7,0.23511877]
[1747634349580,4.20556817,2377.8,2377.7,0.36648779]
[1747634350411,5.11116817,2377.8,2377.7,0.36648779]
[1747634350821,6.23735788,2377.8,2377.7,0.36648779]
[1747634350983,8.18260676,2377.8,2377.7,0.36648779]
[1747634351409,8.18260676,2377.8,2377.7,0.23511877]
[1747634351580,4.20645269,2377.3,2377.2,0.33094407]
[1747634351785,4.20635239,2377.4,2377.2,0.33094407]
[1747634351984,4.20635239,2377.4,2377.3,0.13138616]
[1747634352180,4.20616516,2377.5,2377.3,0.13138616]
[1747634352387,4.20616516,2377.5,2377.3,0.63096553]
[1747634352600,4.20616516,2377.5,2377.4,0.13138616]
[1747634353518,4.20616516,2377.5,2377.4,0.63096553]
[1747634355024,4.20616516,2377.5,2377.4,0.63096776]
[1747634364148,4.20599881,2377.6,2377.4,0.63096776]
[1747634364431,4.20599881,2377.6,2377.5,0.13138839]
[1747634364831,4.20599881,2377.6,2377.5,0.39574966]
[1747634365138,4.20599881,2377.6,2377.5,0.63096776]
[1747634369245,4.20579853,2377.7,2377.5,0.63096776]
[1747634369246,4.20589392,2377.7,2377.5,0.63096776]
[1747634369445,4.20592193,2377.6,2377.5,0.63096776]
[1747634369609,4.20592193,2377.6,2377.5,9.10396776]
[1747634369934,4.20592193,2377.6,2377.5,0.63096776]
[1747634370139,4.20592193,2377.6,2377.5,9.10396776]
[1747634371681,4.20592193,2377.6,2377.5,0.63096776]
[1747634371852,4.20592193,2377.6,2377.5,9.10396776]
[1747634372025,4.20592193,2377.6,2377.5,0.63096776]
[1747634374921,5.04709057,2377.6,2377.5,9.10396776]
[1747634375220,4.20592193,2377.6,2377.5,9.10396776]
[1747634379053,4.20592193,2377.6,2377.5,0.63096776]
[1747634379353,4.20592193,2377.6,2377.5,9.10396776]
[1747634379857,4.20539378,2377.9,2377.6,0.9322]
[1747634380055,4.20486081,2378.2,2377.7,0.13138839]
[1747634380256,2.66511868,2378.3,2377.7,0.13138839]
[1747634380257,4.20539355,2377.9,2377.7,0.13138839]
[1747634380459,4.20508664,2378.1,2377.7,0.13138839]
[1747634380630,4.205308,2378.0,2377.8,0.2352181]
[1747634380955,4.205308,2378.0,2377.8,0.36660649]
[1747634381121,4.20539131,2377.9,2377.8,0.36660649]
[1747634381960,4.2053138,2378.0,2377.8,0.36660649]
[1747634382162,4.20539131,2377.9,2377.8,0.36660649]
[1747634382362,4.20539131,2377.9,2377.8,0.13138839]
[1747634382565,4.20524629,2378.0,2377.8,0.13138839]
[1747634383063,4.20524629,2378.0,2377.9,0.13138839]
[1747634384230,4.20524629,2378.0,2377.9,0.36683074]
[1747634387330,4.20524629,2378.0,2377.9,0.63135826]
[1747634389060,4.20521446,2378.0,2377.9,0.63135826]
[1747634389831,4.20511892,2378.1,2377.9,0.63135826]
[1747634390346,4.20511892,2378.1,2378.0,0.13138839]
[1747634391042,4.20511892,2378.1,2378.0,0.36683074]
[1747634391543,4.20511892,2378.1,2378.0,0.63135826]
[1747634395072,4.20511892,2378.1,2378.0,0.36683074]
[1747634397154,4.20487952,2378.2,2378.0,0.36683074]
[1747634397475,4.20487952,2378.2,2378.1,0.13138839]
[1747634397862,6.05314832,2378.2,2378.1,0.36683074]
[1747634398063,6.05314832,2378.2,2378.1,0.23544235]
[1747634398444,6.05314832,2378.2,2377.6,0.33094407]
[1747634398651,4.20563862,2377.8,2377.6,0.33094407]
[1747634398857,4.20574504,2377.7,2377.6,0.33094407]
[1747634399061,4.20539131,2377.9,2377.6,0.46231512]